fUST/lending_fUST_20240412
["ID","MTS","AMOUNT","RATE_DAILY","PERIOD"]
[322272745,1712926240332,-153.0,0.00041179,2]
[322272749,1712926240340,-152.27040123,0.00041364,30]
[322272752,1712926240349,-500.0,0.00041369,7]
[322272756,1712926240359,-966.89,0.0004143,7]
[322272760,1712926240367,-1218.636058,0.00041553,120]
[322272763,1712926240378,-500.0,0.00041643,7]
[322272765,1712926240387,-966.89,0.00041704,7]
[322272767,1712926240396,-500.0,0.00041917,7]
[322272769,1712926240405,-966.97050872,0.00041978,7]
[322272771,1712926240415,-158.50674994,0.00041998,4]
[322272773,1712926240425,-443.47460784,0.00042,120]
[322272775,1712926240436,-181.79359079,0.00042064,30]
[322272777,1712926240445,-500.0,0.00042191,7]
[322272779,1712926240454,-1452.94721261,0.00042252,10]
[322272781,1712926240463,-154.9690062,0.00042358,4]
[322272783,1712926240471,-1115.8179757,0.000424,120]
[322272785,1712926240480,-500.0,0.00042465,7]
[322272787,1712926240489,-500.0,0.00042739,7]
[322272789,1712926240499,-153.0,0.00042849,2]
[322272791,1712926240508,-2653.83131476,0.00043,120]
[322272793,1712926240518,-500.0,0.00043013,7]
[322272795,1712926240527,-167.911785,0.00043053,2]
[322272797,1712926240538,-153.0,0.00043178,2]
[322272799,1712926240548,-500.0,0.00043287,7]
[322272801,1712926240557,-500.0,0.00043561,7]
[322272803,1712926240566,-15032.82602028,0.000438,30]
[322272805,1712926240575,-181.60593154,0.00043835,7]
[322272807,1712926240584,-500.0,0.00043835,120]
[322272809,1712926240594,-436.50670645,0.00043835,120]
[322272811,1712926240604,-108494.51653628,0.000439,5]
[322272813,1712926240615,-542.59665912,0.00044,2]
[322272815,1712926240624,-46380.54964677,0.00044,7]
[322272818,1712926240634,-2664.45045838,0.00044,30]
[322272820,1712926240644,-17665.92270579,0.00044,30]
[322272821,1712926240654,-799.93995626,0.00044,30]
[322272824,1712926240664,-11898.64213787,0.000445,30]
[322272825,1712926240682,-2999.99999999,0.000446,60]
[322272827,1712926240692,-1574.026147,0.00044644,14]
[322272829,1712926240702,-586.21171,0.00044701,2]
[322272831,1712926240712,-298.486315,0.00044701,2]
[322272833,1712926240722,-4887.48304,0.000448,118]
[322272835,1712926240731,-1536.0,0.00044889,3]
[322272837,1712926240741,-10000.0,0.000449,120]
[322272839,1712926240750,-10000.0,0.000449,120]
[322272841,1712926240760,-1000.0,0.00044999,120]
[322272843,1712926240770,-83533.32984497,0.00045,30]
[322272845,1712926240779,-6000.0,0.00045,120]
[322272847,1712926240790,-544.0,0.00045,120]
[322272849,1712926240799,-815.38680763,0.00045,20]
[322272851,1712926240809,-4939.0,0.00045,120]
[322272853,1712926240818,-8520.73152024,0.00045,120]
[322272855,1712926240828,-5896.07295658,0.00045,30]
[322272857,1712926240838,-162.16403164,0.00045,4]
[322272859,1712926240847,-8662.83171638,0.00045,120]
[322272861,1712926240856,-209.66042833,0.00045,120]
[322272863,1712926240865,-199.0,0.00045,120]
[322272865,1712926240875,-500.0,0.00045,7]
[322272867,1712926240884,-2616.38424633,0.00045,5]
[322272869,1712926240894,-2664.0,0.00045,30]
[322272871,1712926240903,-17664.0,0.00045,30]
[322272873,1712926240912,-799.0,0.00045,30]
[322272876,1712926240928,-440.510477,0.00045083,2]
[322272877,1712926240937,-153.0,0.00045616,2]
[322272879,1712926240946,-153.0,0.00045616,2]
[322272881,1712926240955,-154.90705577,0.000459,4]
[322272883,1712926240965,-10000.0,0.00045989,10]
[322272885,1712926240974,-308.6986578,0.00046438,2]
[322272888,1712926240984,-153.0,0.00046438,2]
[322272890,1712926240993,-153.0,0.00046438,2]
[322272892,1712926241002,-306.0,0.00046438,2]
[322272894,1712926241012,-239175.09851138,0.0004698,120]
[322272896,1712926241021,-21133.018517,0.0004698,120]
[322272898,1712926241030,-20390.6550848,0.00047,4]
[322272900,1712926241039,-167.0,0.00047,90]
[322272902,1712926241049,-1695.10508138,0.00047036,18]
[322272904,1712926241058,-1218.636058,0.00047489,120]
[322272906,1712926241067,-1708.29,0.00048604,7]
[322272908,1712926241076,-167.0,0.00048904,90]
[322272910,1712926241085,-3369.67509796,0.00049,120]
[322272911,1712926241094,-2000.0,0.00049,68]
[322272913,1712926241103,-2902.363275,0.0004901,68]
[322272915,1712926241113,-1008.13784438,0.00049315,120]
[322272917,1712926241122,-168.084084,0.00049315,2]
[322272919,1712926241131,-2151.0,0.00049378,3]
[322272921,1712926241140,-1695.10508138,0.00049427,18]
[322272923,1712926241149,-100100.262656,0.00049952,120]
[322272925,1712926241158,-121298.46073204,0.0005,120]
[322272927,1712926241170,-565.58159184,0.0005,7]
[322272929,1712926241179,-236.52680842,0.0005,60]
[322272932,1712926241188,-869.75602136,0.0005,60]
[322272933,1712926241197,-3230.99389023,0.0005,14]
[322272935,1712926241207,-206.70304002,0.0005,20]
[322272938,1712926241216,-95352.51755222,0.0005,120]
[322272940,1712926241226,-2283.60621443,0.0005,120]
[322272942,1712926241235,-12406.85821384,0.0005,120]
[322272944,1712926241244,-955.14914085,0.0005,60]
[322272946,1712926241253,-2008.18313097,0.0005,30]
[322272948,1712926241262,-151.0,0.0005,120]
[322272949,1712926241272,-200.0,0.0005,120]
[322272952,1712926241281,-154.82968734,0.0005,30]
[322272953,1712926241290,-329.0,0.000503,7]
[322272955,1712926241300,-586.21171,0.00050469,2]
[322272957,1712926241310,-298.486315,0.00050469,2]
[322272959,1712926241319,-20104.16784939,0.00051,120]
[322272961,1712926241328,-1816.18401576,0.00051819,22]
[322272963,1712926241338,-2000.90825351,0.00052,80]
[322272966,1712926241348,-150.81901718,0.00052079,2]
[322272968,1712926241357,-4474.94802556,0.00052573,120]
[322272969,1712926241367,-6011.11,0.000526,60]
[322272972,1712926241376,-301.63803436,0.00052954,4]
[322272974,1712926241386,-10000.0,0.0005299,30]
[322272976,1712926241397,-600.0,0.00053,90]
[322272977,1712926241407,-1218.636058,0.00053425,120]
[322272980,1712926241419,-4619.35105886,0.00054,120]
[322272982,1712926241429,-506.0,0.00054,30]
[322272984,1712926241438,-1001.66887625,0.00054,120]
[322272986,1712926241446,-3011.0,0.00054316,10]
[322272988,1712926241455,-500.0,0.00054794,120]
[322272990,1712926241464,-991.96,0.00054794,120]
[322272991,1712926241473,-991.96,0.00054794,120]
[322272993,1712926241484,-991.96,0.00054794,120]
[322272995,1712926241493,-991.96,0.00054794,120]
[322272998,1712926241502,-991.96,0.00054794,120]
[322272999,1712926241511,-991.96,0.00054794,120]
[322273002,1712926241521,-991.96,0.00054794,120]
[322273004,1712926241535,-991.96,0.00054794,120]
[322273006,1712926241545,-991.96,0.00054794,120]
[322273008,1712926241554,-991.96,0.00054794,120]
[322273010,1712926241563,-991.96,0.00054794,120]
[322273012,1712926241573,-991.96,0.00054794,120]
[322273014,1712926241582,-991.96,0.00054794,120]
[322273024,1712926241675,-991.96,0.00054794,120]
[322273026,1712926241685,-991.96,0.00054794,120]
[322273028,1712926241695,-991.96,0.00054794,120]
[322273030,1712926241704,-991.96,0.00054794,120]
[322273032,1712926241713,-991.96,0.00054794,120]
[322273034,1712926241722,-991.96,0.00054794,120]
[322273036,1712926241732,-991.96,0.00054794,120]
[322273038,1712926241741,-991.96,0.00054794,120]
[322273040,1712926241750,-991.96,0.00054794,120]
[322273042,1712926241760,-991.96,0.00054794,120]
[322273044,1712926241769,-992.12087726,0.00054794,120]
[322273046,1712926241778,-500.0,0.00054794,120]
[322273048,1712926241787,-500.0,0.00054794,120]
[322273050,1712926241796,-500.0,0.00054794,120]
[322273052,1712926241805,-500.0,0.00054794,120]
[322273054,1712926241814,-500.0,0.00054794,120]
[322273056,1712926241824,-500.0,0.00054794,120]
[322273058,1712926241833,-500.0,0.00054794,120]
[322273060,1712926241842,-500.0,0.00054794,120]
[322273062,1712926241852,-500.0,0.00054794,120]
[322273064,1712926241861,-500.0,0.00054794,120]
[322273066,1712926241871,-500.0,0.00054794,120]
[322273068,1712926241880,-229.11562185,0.00054794,120]
[322273070,1712926241889,-2158.25,0.00054794,120]
[322273072,1712926241899,-2158.25,0.00054794,120]
[322273074,1712926241908,-2158.25,0.00054794,120]
[322273076,1712926241917,-2158.25,0.00054794,120]
[322273077,1712926241929,-2158.25,0.00054794,120]
[322273079,1712926241938,-2158.25,0.00054794,120]
[322273081,1712926241947,-2158.25,0.00054794,120]
[322273083,1712926241957,-2158.25,0.00054794,120]
[322273085,1712926241966,-2158.25,0.00054794,120]
[322273087,1712926241975,-2158.25,0.00054794,120]
[322273089,1712926241985,-2158.25,0.00054794,120]
[322273091,1712926241994,-2158.25,0.00054794,120]
[322273093,1712926242003,-2158.25,0.00054794,120]
[322273095,1712926242012,-2158.25,0.00054794,120]
[322273098,1712926242022,-2158.25,0.00054794,120]
[322273100,1712926242031,-2158.25,0.00054794,120]
[322273102,1712926242041,-2158.25,0.00054794,120]
[322273104,1712926242050,-2158.25,0.00054794,120]
[322273106,1712926242059,-2158.25,0.00054794,120]
[322273107,1712926242068,-2158.25,0.00054794,120]
[322273109,1712926242078,-2158.25,0.00054794,120]
[322273111,1712926242087,-2158.25,0.00054794,120]
[322273114,1712926242097,-2158.25,0.00054794,120]
[322273116,1712926242106,-2158.43551761,0.00054794,120]
[322273118,1712926242116,-500.0,0.00054794,7]
[322273119,1712926242125,-500.0,0.00054794,7]
[322273121,1712926242135,-500.0,0.00054794,7]
[322273123,1712926242144,-500.0,0.00054794,7]
[322273125,1712926242153,-500.0,0.00054794,7]
[322273127,1712926242162,-500.0,0.00054794,7]
[322273129,1712926242173,-500.0,0.00054794,7]
[322273132,1712926242183,-500.0,0.00054794,7]
[322273134,1712926242193,-500.0,0.00054794,7]
[322273135,1712926242202,-500.0,0.00054794,7]
[322273137,1712926242212,-500.0,0.00054794,7]
[322273139,1712926242222,-194.51413693,0.00054794,7]
[322273141,1712926242231,-500.0,0.00054794,120]
[322273144,1712926242241,-500.0,0.00054794,120]
[322273145,1712926242250,-500.0,0.00054794,120]
[322273147,1712926242259,-500.0,0.00054794,120]
[322273149,1712926242268,-500.0,0.00054794,120]
[322273151,1712926242278,-500.0,0.00054794,120]
[322273153,1712926242288,-500.0,0.00054794,120]
[322273155,1712926242297,-500.0,0.00054794,120]
[322273158,1712926242306,-500.0,0.00054794,120]
[322273159,1712926242316,-500.0,0.00054794,120]
[322273162,1712926242325,-500.0,0.00054794,120]
[322273164,1712926242335,-344.40773078,0.00054794,120]
[322273165,1712926242344,-151.03093985,0.00054795,120]
[322273168,1712926242354,-151.03093985,0.00054795,120]
[322273170,1712926242364,-151.03093985,0.00054795,120]
[322273172,1712926242373,-151.03093985,0.00054795,120]
[322273174,1712926242382,-151.53,0.00054795,120]
[322273176,1712926242391,-151.10593985,0.00054795,120]
[322273178,1712926242402,-151.10593985,0.00054795,120]
[322273180,1712926242410,-151.10593985,0.00054795,120]
[322273182,1712926242421,-151.10593985,0.00054795,120]
[322273183,1712926242431,-151.10593985,0.00054795,120]
[322273185,1712926242440,-151.10593985,0.00054795,120]
[322273187,1712926242449,-151.10593985,0.00054795,120]
[322273189,1712926242458,-151.10593985,0.00054795,120]
[322273191,1712926242467,-151.10593985,0.00054795,120]
[322273193,1712926242475,-151.10593985,0.00054795,120]
[322273195,1712926242484,-151.10593985,0.00054795,120]
[322273197,1712926242494,-151.10593985,0.00054795,120]
[322273199,1712926242503,-151.10593985,0.00054795,120]
[322273201,1712926242512,-151.10593985,0.00054795,120]
[322273203,1712926242521,-151.10593985,0.00054795,120]
[322273205,1712926242529,-151.10593985,0.00054795,120]
[322273207,1712926242538,-151.10593985,0.00054795,120]
[322273209,1712926242547,-151.10593985,0.00054795,120]
[322273211,1712926242555,-151.10593985,0.00054795,120]
[322273213,1712926242564,-151.6,0.00054795,120]
[322273215,1712926242574,-167.67423362,0.00054795,120]
[322273217,1712926242582,-167.67423362,0.00054795,120]
[322273219,1712926242594,-167.67423362,0.00054795,120]
[322273221,1712926242603,-167.67423362,0.00054795,120]
[322273222,1712926242612,-167.67423362,0.00054795,120]
[322273224,1712926242623,-167.67423362,0.00054795,120]
[322273227,1712926242633,-167.67423362,0.00054795,120]
[322273229,1712926242643,-167.67423362,0.00054795,120]
[322273230,1712926242652,-167.67423362,0.00054795,120]
[322273232,1712926242661,-167.67423362,0.00054795,120]
[322273234,1712926242671,-167.67423362,0.00054795,120]
[322273236,1712926242680,-167.67423362,0.00054795,120]
[322273238,1712926242690,-167.67423362,0.00054795,120]
[322273240,1712926242699,-167.67423362,0.00054795,120]
[322273242,1712926242709,-167.67423362,0.00054795,120]
[322273244,1712926242718,-167.67423362,0.00054795,120]
[322273246,1712926242728,-167.67423362,0.00054795,120]
[322273248,1712926242737,-167.67423362,0.00054795,120]
[322273250,1712926242746,-167.67423362,0.00054795,120]
[322273252,1712926242755,-168.17,0.00054795,120]
[322273254,1712926242766,-670.77193449,0.00054795,120]
[322273256,1712926242776,-670.77193449,0.00054795,120]
[322273258,1712926242785,-670.77193449,0.00054795,120]
[322273260,1712926242794,-670.77193449,0.00054795,120]
[322273262,1712926242803,-670.77193449,0.00054795,120]
[322273264,1712926242812,-670.77193449,0.00054795,120]
[322273266,1712926242822,-670.77193449,0.00054795,120]
[322273268,1712926242831,-670.77193449,0.00054795,120]
[322273270,1712926242840,-670.77193449,0.00054795,120]
[322273272,1712926242850,-670.77193449,0.00054795,120]
[322273274,1712926242859,-670.77193449,0.00054795,120]
[322273276,1712926242869,-670.77193449,0.00054795,120]
[322273279,1712926242878,-670.77193449,0.00054795,120]
[322273280,1712926242888,-670.77193449,0.00054795,120]
[322273282,1712926242897,-670.77193449,0.00054795,120]
[322273285,1712926242907,-670.77193449,0.00054795,120]
[322273287,1712926242917,-670.77193449,0.00054795,120]
[322273289,1712926242928,-670.77193449,0.00054795,120]
[322273291,1712926242938,-670.77193449,0.00054795,120]
[322273293,1712926242946,-671.27,0.00054795,120]
[322273295,1712926242956,-156.6167501,0.00054795,120]
[322273296,1712926242965,-156.6167501,0.00054795,120]
[322273298,1712926242974,-156.6167501,0.00054795,120]
[322273300,1712926242983,-156.6167501,0.00054795,120]
[322273302,1712926242993,-156.6167501,0.00054795,120]
[322273304,1712926243002,-156.6167501,0.00054795,120]
[322273306,1712926243011,-156.6167501,0.00054795,120]
[322273308,1712926243021,-156.6167501,0.00054795,120]
[322273310,1712926243031,-156.6167501,0.00054795,120]
[322273313,1712926243041,-156.6167501,0.00054795,120]
[322273315,1712926243050,-157.11,0.00054795,120]
[322273317,1712926243059,-344.63185021,0.00054795,120]
[322273320,1712926243069,-344.63185021,0.00054795,120]
[322273323,1712926243078,-344.63185021,0.00054795,120]
[322273326,1712926243087,-344.63185021,0.00054795,120]
[322273330,1712926243097,-344.63185021,0.00054795,120]
[322273333,1712926243106,-344.63185021,0.00054795,120]
[322273336,1712926243115,-344.63185021,0.00054795,120]
[322273337,1712926243124,-344.63185021,0.00054795,120]
[322273340,1712926243134,-344.63185021,0.00054795,120]
[322273342,1712926243143,-344.63185021,0.00054795,120]
[322273343,1712926243152,-344.63185021,0.00054795,120]
[322273345,1712926243161,-344.63185021,0.00054795,120]
[322273347,1712926243172,-344.63185021,0.00054795,120]
[322273350,1712926243181,-344.63185021,0.00054795,120]
[322273354,1712926243190,-344.63185021,0.00054795,120]
[322273355,1712926243200,-344.63185021,0.00054795,120]
[322273358,1712926243209,-344.63185021,0.00054795,120]
[322273361,1712926243219,-164.187152,0.00054795,2]
[322273364,1712926243229,-49999.81566007,0.0005499,7]
[322273365,1712926243239,-1000.0,0.00054999,120]
[322273367,1712926243248,-10024.00586166,0.00055,2]
[322273369,1712926243257,-500.0,0.00055068,120]
[322273371,1712926243267,-500.0,0.00055342,120]
[322273373,1712926243276,-500.0,0.00055616,120]
[322273375,1712926243285,-577.0,0.0005567,35]
[322273377,1712926243295,-577.0,0.0005568,35]
[322273381,1712926243305,-164.0,0.0005569,35]
[322273383,1712926243314,-577.0,0.0005569,35]
[322273385,1712926243324,-1799.97122019,0.000557,120]
[322273387,1712926243333,-500.0,0.0005589,120]
[322273390,1712926243343,-500.0,0.00056164,120]
[322273392,1712926243352,-586.21171,0.00056236,2]
[322273394,1712926243363,-298.486315,0.00056236,2]
[322273396,1712926243373,-500.0,0.00056438,120]
[322273398,1712926243382,-2000.0,0.00056707,2]
[322273399,1712926243391,-333.31985024,0.00056712,120]
[322273401,1712926243400,-1760.30179432,0.00057,120]
[322273403,1712926243409,-1100.0,0.00058,120]
[322273405,1712926243418,-856.0,0.000584,10]
[322273407,1712926243428,-1008.02481413,0.000587,60]
[322273409,1712926243437,-167.911785,0.00058708,2]
[322273411,1712926243447,-180.0,0.00059,50]
[322273412,1712926243457,-45797.03795207,0.00059,7]
[322273413,1712926243466,-10000.0,0.0005969,60]
[322273414,1712926243475,-4216.0,0.00059748,10]
[322273415,1712926243484,-9847.64985114,0.000599,120]
[322273416,1712926243493,-671.366611,0.0006,12]
[322273417,1712926243503,-1000.0,0.0006,120]
[322273418,1712926243513,-3000.0,0.0006,120]
[322273419,1712926243522,-2206.69493413,0.0006,120]
[322273420,1712926243531,-71170.5016631,0.0006,120]
[322273422,1712926243541,-308.85135613,0.0006,120]
[322273423,1712926243550,-5016.33297419,0.0006,30]
[322273425,1712926243560,-544.70703,0.0006,120]
[322273427,1712926243569,-168.084084,0.00060274,2]
[322273429,1712926243580,-2000.0,0.00060614,4]
[322273431,1712926243590,-1000.0,0.00060999,120]
[322273433,1712926243601,-344.87440932,0.000616,120]
[322273435,1712926243610,-168.0,0.00061619,120]
[322273437,1712926243620,-670.55,0.000618,120]
[322273439,1712926243629,-586.21171,0.00062004,2]
[322273441,1712926243638,-298.486315,0.00062004,2]
[322273443,1712926243648,-1000.0,0.0006234,120]
[322273445,1712926243658,-1000.0,0.0006234,120]
[322273447,1712926243667,-2822.55686966,0.000633,120]
[322273449,1712926243680,-199.49999685,0.00063559,7]
[322273451,1712926243689,-189.249969,0.00063927,2]
[322273453,1712926243698,-197.0,0.0006398,35]
[322273455,1712926243708,-197.0,0.0006399,35]
[322273457,1712926243718,-504.0,0.00064,120]
[322273459,1712926243727,-150.34438628,0.0006413,120]
[322273461,1712926243736,-1000.0,0.0006489,120]
[322273463,1712926243745,-1000.0,0.0006489,120]
[322273465,1712926243755,-500000.0,0.00065,2]
[322273467,1712926243764,-5903.0,0.00065722,20]
[322273468,1712926243773,-500.0,0.00065753,120]
[322273470,1712926243783,-642.89,0.00065753,120]
[322273472,1712926243792,-642.89,0.00065753,120]
[322273475,1712926243802,-642.89,0.00065753,120]
[322273477,1712926243811,-642.89,0.00065753,120]
[322273478,1712926243821,-642.89,0.00065753,120]
[322273480,1712926243831,-642.89,0.00065753,120]
[322273482,1712926243840,-642.89,0.00065753,120]
[322273484,1712926243849,-642.89,0.00065753,120]
[322273486,1712926243859,-642.89,0.00065753,120]
[322273488,1712926243868,-642.89,0.00065753,120]
[322273490,1712926243878,-642.89,0.00065753,120]
[322273492,1712926243887,-642.89,0.00065753,120]
[322273494,1712926243897,-642.89,0.00065753,120]
[322273496,1712926243907,-642.89,0.00065753,120]
[322273498,1712926243916,-642.89,0.00065753,120]
[322273500,1712926243927,-642.89,0.00065753,120]
[322273502,1712926243936,-642.89,0.00065753,120]
[322273504,1712926243947,-642.89,0.00065753,120]
[322273506,1712926243956,-642.89,0.00065753,120]
[322273508,1712926243965,-642.89,0.00065753,120]
[322273510,1712926243974,-642.89,0.00065753,120]
[322273512,1712926243984,-642.89,0.00065753,120]
[322273514,1712926243994,-642.89,0.00065753,120]
[322273516,1712926244005,-643.0520423,0.00065753,120]
[322273518,1712926244014,-1000.0,0.00065753,120]
[322273520,1712926244024,-1000.0,0.00065753,120]
[322273522,1712926244034,-1000.0,0.00065753,120]
[322273524,1712926244044,-382.38551782,0.00065753,120]
[322273526,1712926244053,-2000.0,0.00065919,120]
[322273528,1712926244062,-10000.0,0.0006767,120]
[322273530,1712926244072,-586.21171,0.00067772,2]
[322273541,1712926244160,-298.486315,0.00067772,2]
[322273543,1712926244171,-2000.0,0.00068228,120]
[322273545,1712926244181,-1407.47707785,0.00068493,120]
[322273546,1712926244191,-154.84515485,0.00069,7]
[322273547,1712926244200,-250746.88,0.00069,120]
[322273548,1712926244208,-1000.0,0.00069987,2]
[322273549,1712926244217,-37006.45341646,0.0007,120]
[322273550,1712926244263,-8850.59589373,0.0007,120]
[322273551,1712926244275,-2670.3016574,0.0007,120]
[322273552,1712926244312,-5620.7847925,0.00043836,2]
[322273553,1712926244326,-2816.39774408,0.00043836,2]
[322273554,1712926244337,-10534.63020407,0.00043836,2]
[322273555,1712926244348,-633.81290601,0.00043836,2]
[322273556,1712926244359,-449.8899995,0.00043836,2]
[322273557,1712926244415,-7461.54786524,0.00043836,2]
[322273559,1712926244425,-344.63185021,0.00054795,120]
[322273561,1712926244434,-344.63185021,0.00054795,120]
[322273562,1712926244443,-345.13,0.00054795,120]
[322273563,1712926244452,-36252.38539679,0.0007,120]
[322273564,1712926244463,-3874.53441545,0.0007,120]
[322273565,1712926244475,-7743.73979982,0.0007,120]
[322273809,1712926246874,-368.74717123,0.0007,120]
[322275052,1712926458491,15017.3979644,0.0002,2]
[322275053,1712926459077,5394.40329736,0.000125,2]
[322275055,1712926468743,792.93811988,0.000176,2]
[322275060,1712926473876,272.6470096,0.0001,2]
[322275061,1712926477580,7359.38575588,0.00018,2]
[322275062,1712926479628,9979.81382259,0.00021,2]
[322275086,1712926661229,466.02802357,0.00021,2]
[322275087,1712926661260,3092.00838845,0.00021,2]
[322275092,1712926705410,11781.90445259,0.00021,2]
[322275153,1712927137158,-410.45041487,0.00027,2]
[322275154,1712927137178,-231.02636657,0.00027377,2]
[322275158,1712927229096,-250.0,0.00027395,2]
[322275159,1712927229117,-306.41441148,0.00027396,2]
[322275160,1712927245153,-604.0169876,0.00027377,2]
[322275161,1712927245175,-295.40173128,0.00027396,2]
[322275162,1712927245196,-331.275378,0.00027397,2]
[322275163,1712927245217,-171.325536,0.00027397,2]
[322275164,1712927245237,-725.11116397,0.00030559,4]
[322275166,1712927287294,150.0,0.000189,2]
[322275167,1712927287434,150.0,0.000239,2]
[322275168,1712927293223,249.57927198,0.00019,2]
[322275172,1712927414297,363.95324741,0.000225,2]
[322275242,1712927432651,-29.2385235,0.00030559,4]
[322275243,1712927432662,-247.91195416,0.00030559,4]
[322275244,1712927432672,-108.86169519,0.00030559,4]
[322275284,1712927438130,-924.58309857,0.00030559,4]
[322275285,1712927438141,-152.10606327,0.000319,2]
[322275286,1712927438151,-1210.66841003,0.00032,2]
[322275287,1712927438160,-242.95603193,0.00032,2]
[322275288,1712927438170,-454.96803577,0.00032151,7]
[322275289,1712927438179,-220.255239,0.00032843,2]
[322275290,1712927438194,-250.0,0.0003285,2]
[322275291,1712927438203,-808.58214958,0.00032851,4]
[322275292,1712927438213,-400.0,0.00032899,2]
[322275293,1712927438223,-24900.0,0.000329,2]
[322275294,1712927438233,-152.10606326,0.00033147,2]
[322275295,1712927438242,-331.275378,0.00033165,2]
[322275296,1712927438251,-1210.66841003,0.0003392,2]
[322275297,1712927438261,-152.10606326,0.00034395,2]
[322275298,1712927438271,-200.0,0.00034483,120]
[322275299,1712927438281,-157.44846145,0.00034838,7]
[322275300,1712927438290,-152.27040121,0.00034884,7]
[322275301,1712927438300,-155.29238538,0.00035073,4]
[322275302,1712927438437,-200.0,0.00035458,120]
[322275303,1712927438447,-913.977044,0.00035616,120]
[322275304,1712927438456,-1378.5598849,0.00035642,2]
[322275305,1712927438465,-1766.30811822,0.00035642,2]
[322275306,1712927438474,-152.10606326,0.00035642,2]
[322275307,1712927438483,-226.52145678,0.00035719,4]
[322275308,1712927438493,-364.86423922,0.0003574,4]
[322275309,1712927438502,-1040.8,0.00035741,2]
[322275310,1712927438511,-1040.8,0.00035741,2]
[322275311,1712927438521,-1040.8,0.00035741,2]
[322275312,1712927438530,-1040.8,0.00035741,2]
[322275313,1712927438539,-1040.8,0.00035741,2]
[322275314,1712927438548,-1040.8,0.00035741,2]
[322275315,1712927438557,-1040.8,0.00035741,2]
[322275316,1712927438566,-1040.8,0.00035741,2]
[322275317,1712927438575,-1040.8,0.00035741,2]
[322275318,1712927438584,-1040.8,0.00035741,2]
[322275319,1712927438593,-274.29572658,0.00035741,15]
[322275320,1712927438603,-339.39257419,0.00035741,15]
[322275321,1712927438612,-4550440.3186849,0.00035742,60]
[322275324,1712927439114,-345.8,0.00035742,60]
[322275328,1712927439132,-17212.95797404,0.00035742,60]
[322275331,1712927439147,-3078.71834868,0.00035742,60]
[322275337,1712927439160,-1303.80850463,0.00035742,60]
[322275341,1712927439173,-25451.26332761,0.00035742,60]
[322275345,1712927439190,-1476.51829863,0.00035742,60]
[322275348,1712927439201,-408.58510027,0.00035742,60]
[322275488,1712927440201,-290.38905729,0.00035742,60]
[322275491,1712927440214,-13979.99999992,0.00035742,60]
[322275503,1712927440338,-16830.534473,0.00035742,60]
[322275749,1712927443194,-53444.56329273,0.00035742,60]
[322275756,1712927443255,-2644.15697988,0.00035742,60]
[322276025,1712927446148,-960.0,0.00035742,5]
[322276110,1712927471367,550.99262459,0.000225,2]
[322276111,1712927471389,884.98024498,0.000225,2]
[322276112,1712927471410,866.95,0.000225,2]
[322276113,1712927471431,716.96368848,0.000225,2]
[322276114,1712927471457,1031.44725178,0.000225,2]
[322276115,1712927505470,14603.82846475,0.000225,2]
[322276116,1712927509318,3255.70238778,0.000225,2]
[322276117,1712927510986,154.82968734,0.000225,2]
[322276118,1712927530889,237.88801436,0.000225,2]
[322276120,1712928067252,200.83573414,0.000225,2]
[322276121,1712928336167,-407.97119397,0.00026999,2]
[322276122,1712928336190,-216.04651221,0.00027,2]
[322276123,1712928433107,-154.82968734,0.00026992,2]
[322276124,1712928433131,-3.79468313,0.00026993,2]
[322276125,1712928435096,-361.06955609,0.00026993,2]
[322276126,1712928435121,-300.0,0.00026993,2]
[322276127,1712928435146,-300.0,0.00026993,2]